lending/lending_fUSD_20240509
["ID","MTS","AMOUNT","RATE_DAILY","PERIOD"]
[326736191,1715290283821,-500.0,0.00041643,32]
[326736192,1715290283831,-609.55,0.00041643,32]
[326736193,1715290283844,-650.73,0.00041643,32]
[326736194,1715290283855,-1710.98,0.00041643,32]
[326736195,1715290283865,-500.0,0.00041643,32]
[326736196,1715290283874,-838.03,0.00041643,32]
[326736197,1715290283886,-500.0,0.00041643,32]
[326736198,1715290283896,-502.13,0.00041643,32]
[326736199,1715290283905,-500.0,0.00041643,32]
[326736200,1715290283915,-500.0,0.00041643,32]
[326736201,1715290283925,-500.0,0.00041643,32]
[326736202,1715290283936,-1157.79,0.00041643,32]
[326736203,1715290283945,-812.76,0.00041643,2]
[326736204,1715290283955,-500.0,0.00041643,32]
[326736205,1715290283964,-500.0,0.00041643,32]
[326736206,1715290283974,-500.0,0.00041643,32]
[326736207,1715290283984,-512.45695198,0.00041643,32]
[326736208,1715290283994,-500.0,0.00041643,32]
[326736209,1715290284003,-150.0,0.00041643,32]
[326736210,1715290284015,-500.0,0.00041643,32]
[326736211,1715290284025,-500.0,0.00041643,32]
[326736212,1715290284036,-500.0,0.00041643,32]
[326736213,1715290284046,-500.0,0.00041643,32]
[326736214,1715290284056,-196.97197387,0.00041643,32]
[326736215,1715290284066,-500.0,0.00041643,32]
[326736216,1715290284076,-500.0,0.00041643,32]
[326736217,1715290284086,-837.56,0.00041643,32]
[326736218,1715290284096,-500.0,0.00041643,32]
[326736219,1715290284105,-500.0,0.00041643,32]
[326736220,1715290284115,-617.0,0.00041643,32]
[326736221,1715290284125,-298.39339498,0.00041643,32]
[326736222,1715290284134,-575.26,0.00041643,32]
[326736223,1715290284144,-500.0,0.00041643,32]
[326736224,1715290284154,-2275.95,0.00041643,32]
[326736225,1715290284164,-536.42,0.00041643,32]
[326736226,1715290284173,-500.0,0.00041643,32]
[326736227,1715290284183,-586.99,0.00041643,32]
[326736228,1715290284192,-500.0,0.00041643,32]
[326736229,1715290284202,-638.06,0.00041643,32]
[326736230,1715290284212,-783.57,0.00041643,32]
[326736231,1715290284221,-500.0,0.00041643,32]
[326736232,1715290284231,-1957.57,0.00041643,32]
[326736233,1715290284240,-500.0,0.00041643,32]
[326736234,1715290284250,-500.0,0.00041643,32]
[326736235,1715290284260,-500.0,0.00041643,32]
[326736236,1715290284269,-1602.79,0.00041643,32]
[326736237,1715290284278,-1202.77,0.00041643,32]
[326736238,1715290284288,-500.0,0.00041643,32]
[326736239,1715290284297,-207.24032679,0.00041643,32]
[326736240,1715290284306,-470.7112991,0.00041643,32]
[326736241,1715290284316,-500.0,0.00041643,32]
[326736242,1715290284325,-500.0,0.00041643,32]
[326736243,1715290284334,-500.0,0.00041643,32]
[326736244,1715290284344,-1204.54,0.00041643,32]
[326736245,1715290284354,-1956.97,0.00041643,32]
[326736246,1715290284372,-500.0,0.00041643,32]
[326736247,1715290284384,-527.48738105,0.00041643,30]
[326736248,1715290284393,-500.0,0.00041643,32]
[326736249,1715290284404,-500.0,0.00041643,32]
[326736250,1715290284414,-500.0,0.00041643,32]
[326736251,1715290284424,-500.0,0.00041643,32]
[326736252,1715290284434,-500.0,0.00041643,32]
[326736253,1715290284444,-500.0,0.00041643,32]
[326736254,1715290284454,-500.0,0.00041643,32]
[326736255,1715290284464,-500.0,0.00041643,32]
[326736256,1715290284474,-1059.73,0.00041643,32]
[326736257,1715290284484,-500.0,0.00041643,32]
[326736258,1715290284494,-1106.02,0.00041643,32]
[326736259,1715290284505,-500.0,0.00041643,32]
[326736260,1715290284517,-1909.69,0.00041643,32]
[326736261,1715290284526,-500.0,0.00041643,32]
[326736262,1715290284536,-500.0,0.00041643,32]
[326736263,1715290284546,-500.0,0.00041643,32]
[326736264,1715290284556,-500.0,0.00041643,32]
[326736265,1715290284567,-197.03758661,0.00041643,32]
[326736266,1715290284577,-1140.76,0.00041643,32]
[326736267,1715290284587,-500.0,0.00041643,32]
[326736268,1715290284597,-500.0,0.00041643,32]
[326736269,1715290284606,-500.0,0.00041643,32]
[326736270,1715290284616,-500.0,0.00041643,32]
[326736271,1715290284626,-500.0,0.00041643,32]
[326736272,1715290284635,-500.0,0.00041643,32]
[326736273,1715290284644,-1043.65,0.00041643,32]
[326736274,1715290284654,-500.0,0.00041643,32]
[326736275,1715290284664,-947.45,0.00041643,32]
[326736276,1715290284673,-500.0,0.00041643,32]
[326736277,1715290284683,-915.39,0.00041643,32]
[326736278,1715290284692,-500.0,0.00041643,32]
[326736279,1715290284702,-500.0,0.00041643,32]
[326736280,1715290284713,-1300.06,0.00041643,32]
[326736281,1715290284724,-503.22799289,0.00041643,32]
[326736282,1715290284733,-500.0,0.00041643,32]
[326736283,1715290284743,-500.0,0.00041643,32]
[326736284,1715290284753,-1582.03,0.00041643,2]
[326736285,1715290284765,-500.0,0.00041643,32]
[326736286,1715290284775,-500.0,0.00041643,32]
[326736287,1715290284785,-549.57,0.00041643,32]
[326736288,1715290284796,-478.75154249,0.00041643,32]
[326736289,1715290284805,-500.0,0.00041643,32]
[326736290,1715290284816,-500.0,0.00041643,32]
[326736291,1715290284826,-500.0,0.00041643,32]
[326736292,1715290284836,-500.0,0.00041643,32]
[326736293,1715290284850,-1226.01,0.00041643,32]
[326736294,1715290284859,-1445.73,0.00041643,32]
[326736295,1715290284869,-500.0,0.00041643,32]
[326736296,1715290284879,-500.0,0.00041643,32]
[326736297,1715290284891,-500.0,0.00041643,32]
[326736298,1715290284900,-500.0,0.00041643,32]
[326736299,1715290284910,-500.0,0.00041643,2]
[326736300,1715290284919,-500.0,0.00041643,32]
[326736301,1715290284930,-777.78,0.00041643,32]
[326736302,1715290284940,-1441.41,0.00041643,32]
[326736303,1715290284950,-500.0,0.00041643,32]
[326736304,1715290284959,-500.0,0.00041643,32]
[326736305,1715290284969,-500.0,0.00041643,32]
[326736306,1715290284978,-500.0,0.00041643,32]
[326736307,1715290284988,-889.65,0.00041643,32]
[326736308,1715290284998,-500.0,0.00041643,32]
[326736309,1715290285010,-500.0,0.00041643,32]
[326736310,1715290285020,-500.0,0.00041643,32]
[326736311,1715290285030,-500.0,0.00041643,32]
[326736312,1715290285039,-506.84234807,0.00041643,32]
[326736313,1715290285049,-1043.61,0.00041643,32]
[326736314,1715290285059,-500.0,0.00041643,32]
[326736315,1715290285070,-1085.76,0.00041643,32]
[326736316,1715290285079,-515.53541432,0.00041643,32]
[326736317,1715290285089,-1399.12,0.00041643,32]
[326736318,1715290285100,-500.0,0.00041643,32]
[326736319,1715290285111,-304.47947072,0.00041643,7]
[326736320,1715290285121,-907.42,0.00041643,32]
[326736321,1715290285132,-500.0,0.00041643,32]
[326736322,1715290285141,-505.99408772,0.00041643,32]
[326736323,1715290285152,-1040.39,0.00041643,32]
[326736324,1715290285162,-882.53,0.00041643,32]
[326736325,1715290285171,-500.0,0.00041643,32]
[326736326,1715290285181,-629.96664293,0.00041643,32]
[326736327,1715290285192,-503.90058427,0.00041643,32]
[326736328,1715290285202,-500.0,0.00041643,32]
[326736329,1715290285211,-500.0,0.00041643,32]
[326736330,1715290285221,-500.0,0.00041643,32]
[326736331,1715290285231,-843.82,0.00041643,32]
[326736332,1715290285240,-500.0,0.00041643,32]
[326736333,1715290285250,-651.45,0.00041643,32]
[326736334,1715290285262,-2410.5,0.00041643,32]
[326736335,1715290285271,-500.0,0.00041643,32]
[326736336,1715290285281,-304.74189438,0.00041643,32]
[326736337,1715290285291,-512.86691392,0.00041643,32]
[326736338,1715290285301,-640.14,0.00041643,32]
[326736339,1715290285310,-500.0,0.00041643,32]
[326736340,1715290285320,-500.0,0.00041643,32]
[326736341,1715290285330,-1010.46,0.00041643,32]
[326736342,1715290285340,-500.0,0.00041643,32]
[326736343,1715290285349,-546.73,0.00041643,32]
[326736344,1715290285359,-500.0,0.00041643,32]
[326736345,1715290285368,-500.0,0.00041643,32]
[326736346,1715290285554,-500.0,0.00041643,32]
[326736347,1715290285564,-1394.83,0.00041643,32]
[326736348,1715290285574,-502.76725702,0.00041643,32]
[326736349,1715290285584,-503.98381873,0.00041643,32]
[326736350,1715290285593,-500.0,0.00041643,32]
[326736351,1715290285603,-500.0,0.00041643,32]
[326736352,1715290285613,-1742.72,0.00041643,32]
[326736353,1715290285623,-1495.39,0.00041643,32]
[326736354,1715290285632,-960.78,0.00041643,32]
[326736355,1715290285642,-500.0,0.00041643,32]
[326736356,1715290285651,-500.0,0.00041643,32]
[326736357,1715290285661,-500.0,0.00041643,32]
[326736358,1715290285670,-1658.7,0.00041643,32]
[326736359,1715290285680,-708.19,0.00041643,32]
[326736360,1715290285689,-593.86,0.00041643,32]
[326736361,1715290285698,-1822.16,0.00041643,32]
[326736362,1715290285708,-500.0,0.00041643,32]
[326736363,1715290285718,-503.14329458,0.00041643,32]
[326736364,1715290285728,-500.0,0.00041643,32]
[326736365,1715290285737,-1084.13,0.00041643,32]
[326736366,1715290285747,-500.0,0.00041643,32]
[326736367,1715290285756,-500.0,0.00041643,32]
[326736368,1715290285767,-500.0,0.00041643,32]
[326736369,1715290285776,-500.0,0.00041643,32]
[326736370,1715290285785,-500.0,0.00041643,32]
[326736371,1715290285795,-788.58,0.00041643,32]
[326736372,1715290285805,-500.0,0.00041643,32]
[326736373,1715290285814,-1076.63,0.00041643,32]
[326736374,1715290285824,-590.58,0.00041643,32]
[326736375,1715290285833,-500.0,0.00041643,32]
[326736376,1715290285849,-500.0,0.00041643,32]
[326736377,1715290285859,-500.0,0.00041643,32]
[326736378,1715290285868,-500.0,0.00041643,32]
[326736379,1715290285878,-500.0,0.00041643,32]
[326736380,1715290285890,-189.0608533,0.00041643,32]
[326736381,1715290285900,-500.0,0.00041643,32]
[326736382,1715290285911,-500.0,0.00041643,32]
[326736383,1715290285923,-500.0,0.00041643,32]
[326736384,1715290285933,-531.80102812,0.00041643,32]
[326736385,1715290285943,-928.79,0.00041643,32]
[326736386,1715290285952,-500.0,0.00041643,32]
[326736387,1715290285963,-500.0,0.00041643,32]
[326736388,1715290285972,-500.0,0.00041643,32]
[326736389,1715290285982,-909.38,0.00041643,32]
[326736390,1715290285991,-500.0,0.00041643,32]
[326736391,1715290286001,-500.0,0.00041643,32]
[326736392,1715290286013,-541.85,0.00041643,32]
[326736393,1715290286023,-2911.76,0.00041643,32]
[326736394,1715290286032,-503.18473231,0.00041643,32]
[326736395,1715290286042,-500.0,0.00041643,32]
[326736396,1715290286051,-719.79,0.00041643,32]
[326736397,1715290286061,-500.0,0.00041643,2]
[326736398,1715290286071,-2718.81,0.00041643,32]
[326736399,1715290286081,-500.0,0.00041643,32]
[326736400,1715290286091,-1575.22,0.00041643,32]
[326736401,1715290286100,-500.0,0.00041643,32]
[326736402,1715290286110,-540.3,0.00041643,32]
[326736403,1715290286120,-700.44,0.00041643,32]
[326736404,1715290286130,-2350.05,0.00041643,32]
[326736405,1715290286140,-500.0,0.00041643,32]
[326736406,1715290286150,-560.09,0.00041643,32]
[326736407,1715290286160,-2067.31,0.00041643,32]
[326736408,1715290286170,-500.0,0.00041643,32]
[326736409,1715290286179,-500.0,0.00041643,32]
[326736410,1715290286189,-500.0,0.00041643,32]
[326736411,1715290286199,-1065.75,0.00041643,32]
[326736412,1715290286208,-1252.97,0.00041643,32]
[326736413,1715290286218,-518.24847792,0.00041643,32]
[326736414,1715290286228,-500.0,0.00041643,32]
[326736415,1715290286238,-2218.89,0.00041643,32]
[326736416,1715290286247,-500.0,0.00041643,32]
[326736417,1715290286258,-512.79946762,0.00041643,32]
[326736418,1715290286269,-500.0,0.00041643,32]
[326736419,1715290286279,-500.0,0.00041643,32]
[326736420,1715290286288,-500.0,0.00041643,32]
[326736421,1715290286298,-963.81,0.00041643,32]
[326736422,1715290286307,-513.6,0.00041643,32]
[326736423,1715290286317,-943.45,0.00041643,32]
[326736424,1715290286326,-500.0,0.00041643,32]
[326736425,1715290286335,-500.0,0.00041643,32]
[326736426,1715290286345,-500.0,0.00041643,32]
[326736427,1715290286354,-770.87,0.00041643,32]
[326736428,1715290286364,-1332.55,0.00041643,32]
[326736429,1715290286373,-798.6,0.00041643,32]
[326736430,1715290286383,-500.0,0.00041643,32]
[326736431,1715290286392,-500.0,0.00041643,32]
[326736432,1715290286402,-500.0,0.00041643,32]
[326736433,1715290286411,-787.19,0.00041643,32]
[326736434,1715290286421,-500.0,0.00041643,32]
[326736435,1715290286431,-9931.73388826,0.00041643,2]
[326736436,1715290286440,-3381.99,0.00041643,30]
[326736437,1715290286451,-500.0,0.00041643,32]
[326736438,1715290286460,-1198.32,0.00041643,32]
[326736439,1715290286472,-500.0,0.00041643,32]
[326736440,1715290286483,-1980.54,0.00041643,32]
[326736441,1715290286493,-1307.98,0.00041643,32]
[326736442,1715290286502,-5000.0,0.00041643,32]
[326736443,1715290286514,-500.0,0.00041643,32]
[326736444,1715290286523,-1221.93,0.00041643,32]
[326736445,1715290286532,-541.64461588,0.00041643,2]
[326736446,1715290286542,-507.71142985,0.00041643,32]
[326736447,1715290286551,-151.0,0.00041643,14]
[326736448,1715290286560,-151.0,0.00041643,14]
[326736449,1715290286570,-830.33,0.00041643,32]
[326736450,1715290286580,-500.0,0.00041643,32]
[326736451,1715290286589,-568.49,0.00041643,32]
[326736452,1715290286599,-500.0,0.00041643,32]
[326736453,1715290286608,-500.0,0.00041643,32]
[326736454,1715290286617,-500.0,0.00041643,32]
[326736455,1715290286627,-500.0,0.00041643,32]
[326736456,1715290286636,-500.0,0.00041643,32]
[326736457,1715290286645,-500.0,0.00041643,32]
[326736458,1715290286654,-1110.63,0.00041643,32]
[326736459,1715290286664,-1072.7,0.00041643,32]
[326736460,1715290286673,-500.0,0.00041643,32]
[326736461,1715290286682,-500.0,0.00041643,32]
[326736462,1715290286691,-500.0,0.00041643,32]
[326736463,1715290286700,-1017.16,0.00041643,32]
[326736464,1715290286709,-500.0,0.00041643,32]
[326736465,1715290286719,-500.0,0.00041643,32]
[326736466,1715290286728,-340.98865061,0.00041643,32]
[326736467,1715290286737,-151.478068,0.00041643,14]
[326736468,1715290286747,-151.478068,0.00041643,14]
[326736469,1715290286756,-1413.01,0.00041643,32]
[326736470,1715290286768,-500.0,0.00041643,32]
[326736471,1715290286777,-500.0,0.00041643,32]
[326736472,1715290286787,-718.43,0.00041643,32]
[326736473,1715290286796,-1564.4,0.00041643,32]
[326736474,1715290286805,-151.478068,0.00041643,14]
[326736475,1715290286814,-151.478068,0.00041643,14]
[326736476,1715290286823,-1090.36,0.00041643,32]
[326736477,1715290286833,-500.0,0.00041643,32]
[326736478,1715290286846,-540.72326028,0.00041643,32]
[326736479,1715290286856,-500.0,0.00041643,32]
[326736480,1715290286865,-769.35,0.00041643,32]
[326736481,1715290286874,-500.0,0.00041643,32]
[326736482,1715290286884,-562.98,0.00041643,32]
[326736483,1715290286895,-500.0,0.00041643,32]
[326736484,1715290286904,-500.0,0.00041643,32]
[326736485,1715290286913,-500.0,0.00041643,32]
[326736486,1715290286925,-1579.96,0.00041643,32]
[326736487,1715290286935,-1118.27,0.00041643,32]
[326736488,1715290286944,-500.0,0.00041643,32]
[326736489,1715290286953,-1773.87,0.00041643,32]
[326736490,1715290286963,-1444.09,0.00041643,32]
[326736491,1715290286972,-837.88,0.00041643,32]
[326736492,1715290286981,-500.0,0.00041643,32]
[326736493,1715290286991,-500.0,0.00041643,32]
[326736494,1715290287000,-500.0,0.00041643,32]
[326736495,1715290287011,-500.0,0.00041643,32]
[326736496,1715290287020,-645.23,0.00041643,32]
[326736497,1715290287030,-500.0,0.00041643,32]
[326736498,1715290287039,-500.0,0.00041643,32]
[326736499,1715290287049,-500.0,0.00041643,32]
[326736500,1715290287058,-1111.73,0.00041643,32]
[326736501,1715290287067,-761.26,0.00041643,32]
[326736502,1715290287076,-500.0,0.00041643,32]
[326736503,1715290287086,-500.0,0.00041643,32]
[326736504,1715290287095,-863.41,0.00041643,32]
[326736505,1715290287104,-154.883462,0.00041643,14]
[326736506,1715290287113,-590.71,0.00041643,32]
[326736507,1715290287124,-500.0,0.00041643,32]
[326736508,1715290287133,-1966.38,0.00041643,32]
[326736509,1715290287142,-500.0,0.00041643,32]
[326736510,1715290287151,-686.29,0.00041643,32]
[326736511,1715290287160,-500.0,0.00041643,32]
[326736512,1715290287170,-500.0,0.00041643,32]
[326736513,1715290287179,-500.0,0.00041643,32]
[326736514,1715290287188,-1459.05,0.00041643,32]
[326736515,1715290287197,-3585.9,0.00041643,32]
[326736516,1715290287207,-1662.29,0.00041643,32]
[326736517,1715290287216,-500.0,0.00041643,32]
[326736518,1715290287225,-500.0,0.00041643,32]
[326736519,1715290287235,-500.0,0.00041643,32]
[326736520,1715290287244,-500.0,0.00041643,32]
[326736521,1715290287253,-500.0,0.00041643,32]
[326736522,1715290287265,-500.0,0.00041643,32]
[326736523,1715290287274,-500.0,0.00041643,32]
[326736524,1715290287283,-500.0,0.00041643,32]
[326736525,1715290287292,-500.0,0.00041643,32]
[326736526,1715290287302,-500.0,0.00041643,32]
[326736527,1715290287311,-500.0,0.00041643,32]
[326736528,1715290287320,-500.0,0.00041643,2]
[326736529,1715290287330,-1410.0,0.00041643,30]
[326736530,1715290287339,-500.0,0.00041643,32]
[326736531,1715290287349,-500.0,0.00041643,32]
[326736532,1715290287360,-842.87,0.00041643,32]
[326736533,1715290287371,-500.0,0.00041643,32]
[326736534,1715290287382,-500.0,0.00041643,32]
[326736535,1715290287392,-1288.43,0.00041643,32]
[326736536,1715290287402,-393.62914406,0.00041643,32]
[326736537,1715290287412,-512.700227,0.00041643,32]
[326736538,1715290287422,-500.0,0.00041643,32]
[326736539,1715290287432,-2145.77,0.00041643,32]
[326736540,1715290287442,-500.0,0.00041643,32]
[326736541,1715290287452,-500.0,0.00041643,32]
[326736542,1715290287462,-500.0,0.00041643,32]
[326736543,1715290287471,-680.58,0.00041643,32]
[326736544,1715290287480,-512.66063173,0.00041643,32]
[326736545,1715290287491,-2308.93,0.00041643,32]
[326736546,1715290287502,-510.81299358,0.00041643,32]
[326736547,1715290287512,-500.0,0.00041643,32]
[326736548,1715290287522,-500.0,0.00041643,32]
[326736549,1715290287531,-500.0,0.00041643,32]
[326736550,1715290287540,-500.0,0.00041643,32]
[326736551,1715290287549,-500.0,0.00041643,32]
[326736552,1715290287558,-570.01,0.00041643,32]
[326736553,1715290287567,-500.0,0.00041643,32]
[326736554,1715290287576,-2218.23,0.00041643,32]
[326736555,1715290287586,-710.53,0.00041643,32]
[326736556,1715290287595,-500.0,0.00041643,32]
[326736557,1715290287604,-500.0,0.00041643,32]
[326736558,1715290287613,-500.0,0.00041643,32]
[326736559,1715290287622,-500.0,0.00041643,32]
[326736560,1715290287632,-500.0,0.00041643,32]
[326736561,1715290287641,-1250.78,0.00041643,32]
[326736562,1715290287650,-524.5,0.00041643,32]
[326736563,1715290287660,-500.0,0.00041643,32]
[326736564,1715290287669,-500.0,0.00041643,32]
[326736565,1715290287678,-1214.5,0.00041643,32]
[326736566,1715290287688,-748.28,0.00041643,32]
[326736567,1715290287700,-1674.55,0.00041643,32]
[326736568,1715290287710,-1106.96,0.00041643,32]
[326736569,1715290287719,-3181.87,0.00041643,32]
[326736570,1715290287731,-630.26,0.00041643,32]
[326736571,1715290287740,-219.962182,0.00041643,14]
[326736572,1715290287750,-695.55,0.00041643,32]
[326736573,1715290287760,-500.0,0.00041643,32]
[326736574,1715290287769,-500.0,0.00041643,32]
[326736575,1715290287779,-502.6331937,0.00041643,32]
[326736576,1715290287789,-1411.96,0.00041643,32]
[326736577,1715290287799,-500.0,0.00041643,32]
[326736578,1715290287809,-500.0,0.00041643,32]
[326736579,1715290287820,-1329.71,0.00041643,32]
[326736580,1715290287829,-500.0,0.00041643,32]
[326736581,1715290287839,-500.0,0.00041643,32]
[326736582,1715290287852,-500.0,0.00041643,32]
[326736583,1715290287861,-500.0,0.00041643,32]
[326736584,1715290287870,-500.0,0.00041643,32]
[326736585,1715290287880,-500.0,0.00041643,32]
[326736586,1715290287891,-589.21,0.00041643,32]
[326736587,1715290287900,-500.0,0.00041643,32]
[326736588,1715290287909,-614.4399929,0.00041643,2]
[326736589,1715290287918,-500.0,0.00041643,32]
[326736590,1715290287931,-1580.25,0.00041643,32]
[326736591,1715290287942,-1261.42,0.00041643,32]
[326736592,1715290287951,-500.0,0.00041643,32]
[326736593,1715290287961,-500.0,0.00041643,32]
[326736594,1715290287972,-982.84,0.00041643,32]
[326736595,1715290287982,-990.55,0.00041643,32]
[326736596,1715290287992,-500.0,0.00041643,32]
[326736597,1715290288002,-500.0,0.00041643,32]
[326736598,1715290288013,-2734.91,0.00041643,90]
[326736599,1715290288023,-500.0,0.00041643,32]
[326736600,1715290288032,-500.0,0.00041643,32]
[326736601,1715290288043,-500.0,0.00041643,32]
[326736602,1715290288052,-3000.0,0.00041643,32]
[326736603,1715290288061,-500.0,0.00041643,32]
[326736604,1715290288072,-754.97,0.00041643,32]
[326736605,1715290288081,-1163.62,0.00041643,32]
[326736606,1715290288091,-500.0,0.00041643,32]
[326736607,1715290288100,-500.0,0.00041643,32]
[326736608,1715290288109,-1290.04,0.00041643,32]
[326736609,1715290288118,-500.0,0.00041643,32]
[326736610,1715290288127,-500.0,0.00041643,32]
[326736611,1715290288137,-500.0,0.00041643,32]
[326736612,1715290288146,-500.86492458,0.00041643,32]
[326736613,1715290288156,-686.59,0.00041643,32]
[326736614,1715290288165,-500.0,0.00041643,30]
[326736615,1715290288174,-1168.24,0.00041643,32]
[326736616,1715290288183,-2519.14,0.00041643,32]
[326736617,1715290288192,-1010.71,0.00041643,32]
[326736618,1715290288202,-500.0,0.00041643,32]
[326736619,1715290288211,-500.0,0.00041643,32]
[326736620,1715290288220,-500.0,0.00041643,32]
[326736621,1715290288229,-1693.45,0.00041643,32]
[326736622,1715290288239,-516.75218627,0.00041643,32]
[326736623,1715290288249,-500.0,0.00041643,32]
[326736624,1715290288259,-500.0,0.00041643,32]
[326736625,1715290288270,-500.0,0.00041643,32]
[326736626,1715290288281,-586.07106425,0.00041643,32]
[326736627,1715290288293,-500.0,0.00041643,32]
[326736628,1715290288304,-1028.53,0.00041643,32]
[326736629,1715290288313,-504.4838579,0.00041643,32]
[326736630,1715290288325,-500.0,0.00041643,32]
[326736631,1715290288335,-500.0,0.00041643,32]
[326736632,1715290288348,-496.77973631,0.00041643,32]
[326736633,1715290288359,-500.0,0.00041643,32]
[326736634,1715290288368,-723.96,0.00041643,32]
[326736635,1715290288378,-554.43,0.00041643,32]
[326736636,1715290288387,-500.0,0.00041643,32]
[326736637,1715290288396,-500.0,0.00041643,32]
[326736638,1715290288407,-1305.3,0.00041643,32]
[326736639,1715290288417,-500.0,0.00041643,32]
[326736640,1715290288427,-2114.59,0.00041643,32]
[326736641,1715290288437,-500.0,0.00041643,32]
[326736642,1715290288447,-500.0,0.00041643,32]
[326736643,1715290288456,-506.8029123,0.00041643,32]
[326736644,1715290288466,-500.0,0.00041643,32]
[326736645,1715290288475,-500.0,0.00041643,32]
[326736646,1715290288485,-622.13,0.00041643,32]
[326736647,1715290288494,-500.0,0.00041643,32]
[326736648,1715290288504,-505.35,0.00041643,32]
[326736649,1715290288515,-1925.23,0.00041643,32]
[326736650,1715290288525,-741.88,0.00041643,32]
[326736651,1715290288534,-414.09307172,0.00041643,32]
[326736652,1715290288545,-500.0,0.00041643,32]
[326736653,1715290288555,-500.0,0.00041643,32]
[326736654,1715290288565,-500.0,0.00041643,32]
[326736655,1715290288574,-553.86,0.00041643,32]
[326736656,1715290288584,-153.89,0.00041643,32]
[326736657,1715290288595,-500.0,0.00041643,32]
[326736658,1715290288605,-598.59,0.00041643,32]
[326736659,1715290288616,-1589.8,0.00041643,32]
[326736660,1715290288625,-500.0,0.00041643,32]
[326736661,1715290288635,-501.04033596,0.00041643,32]
[326736662,1715290288644,-974.29,0.00041643,32]
[326736663,1715290288654,-1678.24,0.00041643,32]
[326736664,1715290288665,-500.0,0.00041643,32]
[326736665,1715290288674,-585.26,0.00041643,32]
[326736666,1715290288684,-1688.22,0.00041643,32]
[326736667,1715290288694,-500.0,0.00041643,32]
[326736668,1715290288704,-653.37,0.00041643,32]
[326736669,1715290288713,-500.0,0.00041643,32]
[326736670,1715290288723,-1513.03,0.00041643,32]
[326736671,1715290288732,-2833.18,0.00041643,32]
[326736672,1715290288742,-515.71981439,0.00041643,32]
[326736673,1715290288751,-998.08,0.00041643,32]
[326736674,1715290288761,-500.0,0.00041643,7]
[326736675,1715290288771,-500.0,0.00041643,32]
[326736676,1715290288781,-1542.27,0.00041643,32]
[326736677,1715290288790,-500.0,0.00041643,32]
[326736678,1715290288800,-500.0,0.00041643,32]
[326736679,1715290288809,-1491.58,0.00041643,32]
[326736680,1715290288819,-550.21517405,0.00041643,32]
[326736681,1715290288828,-913.79,0.00041643,32]
[326736682,1715290288838,-1372.05,0.00041643,32]
[326736683,1715290288854,-500.0,0.00041643,32]
[326736684,1715290288863,-784.75,0.00041643,32]
[326736685,1715290288873,-780.84,0.00041643,32]
[326736686,1715290288883,-500.0,0.00041643,32]
[326736687,1715290288893,-500.0,0.00041643,32]
[326736688,1715290288904,-500.0,0.00041643,32]
[326736689,1715290288914,-500.0,0.00041643,32]
[326736690,1715290288925,-500.0,0.00041643,32]